fUSD/lending_fUSD_20260621
["ID","MTS","AMOUNT","RATE_DAILY","PERIOD"]
[425923391,1782036658000,-1253.56,0.00027945,2]
[425923362,1782036658000,-500.0,0.00027945,2]
[425923359,1782036658000,-500.0,0.00027945,2]
[425923364,1782036658000,-500.0,0.00027945,2]
[425923377,1782036658000,-684.54,0.00027945,2]
[425923367,1782036658000,-770.0,0.00027945,2]
[425923369,1782036658000,-500.0,0.00027945,2]
[425923370,1782036658000,-500.0,0.00027945,2]
[425923366,1782036658000,-1235.09,0.00027945,2]
[425923368,1782036658000,-500.0,0.00027945,2]
[425923372,1782036658000,-500.0,0.00027945,2]
[425923371,1782036658000,-500.0,0.00027945,2]
[425923375,1782036658000,-405.16158222,0.00027945,2]
[425923360,1782036658000,-1360.88,0.00027945,2]
[425923374,1782036658000,-500.0,0.00027945,2]
[425923387,1782036658000,-500.0,0.00027945,2]
[425923376,1782036658000,-500.0,0.00027945,2]
[425923384,1782036658000,-503.72,0.00027945,2]
[425923379,1782036658000,-638.76,0.00027945,2]
[425923381,1782036658000,-500.0,0.00027945,2]
[425923385,1782036658000,-500.0,0.00027945,2]
[425923382,1782036658000,-500.0,0.00027945,2]
[425923373,1782036658000,-500.0,0.00027945,2]
[425923380,1782036658000,-653.61,0.00027945,2]
[425923388,1782036658000,-500.0,0.00027945,2]
[425923389,1782036658000,-500.0,0.00027945,2]
[425923386,1782036658000,-2356.71,0.00027945,2]
[425923383,1782036658000,-500.0,0.00027945,2]
[425923453,1782036659000,-500.0,0.00027945,2]
[425923452,1782036659000,-849.95,0.00027945,2]
[425923450,1782036659000,-500.0,0.00027945,2]
[425923454,1782036659000,-580.53078941,0.00027945,2]
[425923455,1782036659000,-559.83,0.00027945,2]
[425923463,1782036659000,-5268.44,0.00027945,2]
[425923457,1782036659000,-500.0,0.00027945,2]
[425923451,1782036659000,-3565.25,0.00027945,2]
[425923459,1782036659000,-969.73,0.00027945,2]
[425923449,1782036659000,-500.0,0.00027945,2]
[425923467,1782036659000,-1119.73,0.00027945,2]
[425923461,1782036659000,-834.65,0.00027945,2]
[425923456,1782036659000,-500.0,0.00027945,2]
[425923465,1782036659000,-524.63,0.00027945,2]
[425923458,1782036659000,-3216.01,0.00027945,2]
[425923460,1782036659000,-500.0,0.00027945,2]
[425923464,1782036659000,-500.0,0.00027945,2]
[425923462,1782036659000,-1933.49,0.00027945,2]
[425923479,1782036659000,-500.0,0.00027945,2]
[425923469,1782036659000,-935.79,0.00027945,2]
[425923447,1782036659000,-500.0,0.00027945,2]
[425923480,1782036659000,-500.0,0.00027945,2]
[425923466,1782036659000,-450.19425557,0.00027945,2]
[425923448,1782036659000,-675.07,0.00027945,2]
[425923435,1782036659000,-500.0,0.00027945,2]
[425923444,1782036659000,-500.0,0.00027945,2]
[425923468,1782036659000,-4806.58,0.00027945,2]
[425923428,1782036659000,-500.0,0.00027945,2]
[425923427,1782036659000,-500.0,0.00027945,2]
[425923422,1782036659000,-1097.22,0.00027945,2]
[425923423,1782036659000,-500.0,0.00027945,2]
[425923425,1782036659000,-500.0,0.00027945,2]
[425923424,1782036659000,-352.91613915,0.00027945,2]
[425923426,1782036659000,-500.0,0.00027945,2]
[425923429,1782036659000,-500.0,0.00027945,2]
[425923431,1782036659000,-500.0,0.00027945,2]
[425923436,1782036659000,-500.0,0.00027945,2]
[425923430,1782036659000,-500.0,0.00027945,2]
[425923432,1782036659000,-500.0,0.00027945,2]
[425923433,1782036659000,-500.0,0.00027945,2]
[425923434,1782036659000,-500.0,0.00027945,2]
[425923437,1782036659000,-500.0,0.00027945,2]
[425923438,1782036659000,-500.0,0.00027945,2]
[425923440,1782036659000,-500.0,0.00027945,2]
[425923439,1782036659000,-500.0,0.00027945,2]
[425923442,1782036659000,-500.0,0.00027945,2]
[425923443,1782036659000,-1273.89,0.00027945,2]
[425923441,1782036659000,-500.0,0.00027945,2]
[425923445,1782036659000,-500.0,0.00027945,2]
[425923446,1782036659000,-956.37,0.00027945,2]
[425923471,1782036659000,-951.62,0.00027945,2]
[425923483,1782036659000,-500.0,0.00027945,2]
[425923477,1782036659000,-4567.55,0.00027945,2]
[425923501,1782036659000,-500.0,0.00027945,2]
[425923504,1782036659000,-835.73,0.00027945,2]
[425923505,1782036659000,-500.0,0.00027945,2]
[425923506,1782036659000,-500.0,0.00027945,2]
[425923507,1782036659000,-500.0,0.00027945,2]
[425923510,1782036659000,-643.45481538,0.00027945,2]
[425923515,1782036659000,-375.53689497,0.00027945,2]
[425923513,1782036659000,-2467.13,0.00027945,2]
[425923508,1782036659000,-500.0,0.00027945,2]
[425923516,1782036659000,-500.0,0.00027945,2]
[425923514,1782036659000,-500.0,0.00027945,2]
[425923511,1782036659000,-500.0,0.00027945,2]
[425923470,1782036659000,-500.0,0.00027945,2]
[425923509,1782036659000,-500.0,0.00027945,2]
[425923518,1782036659000,-500.0,0.00027945,2]
[425923517,1782036659000,-500.0,0.00027945,2]
[425923519,1782036659000,-500.0,0.00027945,2]
[425923521,1782036659000,-500.0,0.00027945,2]
[425923520,1782036659000,-500.0,0.00027945,2]
[425923522,1782036659000,-500.0,0.00027945,2]
[425923524,1782036659000,-500.0,0.00027945,2]
[425923523,1782036659000,-500.0,0.00027945,2]
[425923525,1782036659000,-500.0,0.00027945,2]
[425923502,1782036659000,-500.0,0.00027945,2]
[425923499,1782036659000,-500.0,0.00027945,2]
[425923512,1782036659000,-918.31,0.00027945,2]
[425923496,1782036659000,-500.0,0.00027945,2]
[425923500,1782036659000,-500.0,0.00027945,2]
[425923472,1782036659000,-500.0,0.00027945,2]
[425923476,1782036659000,-566.31648872,0.00027945,2]
[425923474,1782036659000,-648.35,0.00027945,2]
[425923473,1782036659000,-4809.24,0.00027945,2]
[425923475,1782036659000,-500.0,0.00027945,2]
[425923481,1782036659000,-500.0,0.00027945,2]
[425923482,1782036659000,-500.0,0.00027945,2]
[425923487,1782036659000,-643.8,0.00027945,2]
[425923486,1782036659000,-500.0,0.00027945,2]
[425923484,1782036659000,-500.0,0.00027945,2]
[425923478,1782036659000,-500.0,0.00027945,2]
[425923491,1782036659000,-500.0,0.00027945,2]
[425923498,1782036659000,-500.0,0.00027945,2]
[425923485,1782036659000,-500.0,0.00027945,2]
[425923497,1782036659000,-500.0,0.00027945,2]
[425923494,1782036659000,-500.0,0.00027945,2]
[425923492,1782036659000,-500.0,0.00027945,2]
[425923503,1782036659000,-500.0,0.00027945,2]
[425923495,1782036659000,-500.0,0.00027945,2]
[425923490,1782036659000,-500.0,0.00027945,2]
[425923489,1782036659000,-500.0,0.00027945,2]
[425923488,1782036659000,-500.0,0.00027945,2]
[425923493,1782036659000,-500.0,0.00027945,2]
[425923563,1782036660000,-500.0,0.00027945,2]
[425923564,1782036660000,-500.0,0.00027945,2]
[425923566,1782036660000,-547.39,0.00027945,2]
[425923567,1782036660000,-602.27,0.00027945,2]
[425923568,1782036660000,-637.81,0.00027945,2]
[425923558,1782036660000,-500.0,0.00027945,2]
[425923565,1782036660000,-500.0,0.00027945,2]
[425923561,1782036660000,-236.82,0.00027945,2]
[425923559,1782036660000,-500.0,0.00027945,2]
[425923554,1782036660000,-500.0,0.00027945,2]
[425923562,1782036660000,-500.0,0.00027945,2]
[425923560,1782036660000,-500.0,0.00027945,2]
[425923569,1782036660000,-634.08,0.00027945,2]
[425923580,1782036660000,-500.0,0.00027945,2]
[425923571,1782036660000,-500.0,0.00027945,2]
[425923575,1782036660000,-500.0,0.00027945,2]
[425923579,1782036660000,-387.75,0.00027945,2]
[425923578,1782036660000,-500.0,0.00027945,2]
[425923576,1782036660000,-500.0,0.00027945,2]
[425923573,1782036660000,-500.0,0.00027945,2]
[425923574,1782036660000,-500.0,0.00027945,2]
[425923570,1782036660000,-547.19,0.00027945,2]
[425923577,1782036660000,-500.0,0.00027945,2]
[425923581,1782036660000,-782.44,0.00027945,2]
[425923592,1782036660000,-500.0,0.00027945,2]
[425923591,1782036660000,-4904.56,0.00027945,2]
[425923555,1782036660000,-500.0,0.00027945,2]
[425923572,1782036660000,-500.0,0.00027945,2]
[425923550,1782036660000,-500.78,0.00027945,2]
[425923613,1782036660000,-1121.32,0.00027945,2]
[425923552,1782036660000,-500.0,0.00027945,2]
[425923588,1782036660000,-589.86,0.00027945,2]
[425923531,1782036660000,-500.0,0.00027945,2]
[425923528,1782036660000,-500.0,0.00027945,2]
[425923526,1782036660000,-500.0,0.00027945,2]
[425923529,1782036660000,-500.0,0.00027945,2]
[425923527,1782036660000,-500.0,0.00027945,2]
[425923532,1782036660000,-500.0,0.00027945,2]
[425923530,1782036660000,-500.0,0.00027945,2]
[425923534,1782036660000,-500.0,0.00027945,2]
[425923544,1782036660000,-500.0,0.00027945,2]
[425923533,1782036660000,-530.28,0.00027945,2]
[425923540,1782036660000,-500.0,0.00027945,2]
[425923535,1782036660000,-500.0,0.00027945,2]
[425923553,1782036660000,-500.0,0.00027945,2]
[425923543,1782036660000,-500.0,0.00027945,2]
[425923539,1782036660000,-500.0,0.00027945,2]
[425923541,1782036660000,-500.0,0.00027945,2]
[425923538,1782036660000,-6132.74,0.00027945,2]
[425923537,1782036660000,-500.0,0.00027945,2]
[425923542,1782036660000,-500.0,0.00027945,2]
[425923547,1782036660000,-234.81013797,0.00027945,2]
[425923545,1782036660000,-500.0,0.00027945,2]
[425923548,1782036660000,-500.0,0.00027945,2]
[425923551,1782036660000,-500.0,0.00027945,2]
[425923556,1782036660000,-500.0,0.00027945,2]
[425923549,1782036660000,-500.0,0.00027945,2]
[425923557,1782036660000,-500.0,0.00027945,2]
[425923546,1782036660000,-500.0,0.00027945,2]
[425923536,1782036660000,-500.0,0.00027945,2]
[425923589,1782036660000,-8344.59,0.00027945,2]
[425923628,1782036660000,-500.0,0.00027945,2]
[425923583,1782036660000,-8596.43,0.00027945,2]
[425923619,1782036660000,-500.0,0.00027945,2]
[425923621,1782036660000,-508.58,0.00027945,2]
[425923623,1782036660000,-500.0,0.00027945,2]
[425923622,1782036660000,-500.0,0.00027945,2]
[425923627,1782036660000,-503.69,0.00027945,2]
[425923624,1782036660000,-500.0,0.00027945,2]
[425923630,1782036660000,-4893.3,0.00027945,2]
[425923620,1782036660000,-3462.02,0.00027945,2]
[425923626,1782036660000,-500.0,0.00027945,2]
[425923631,1782036660000,-7434.82,0.00027945,2]
[425923625,1782036660000,-500.0,0.00027945,2]
[425923629,1782036660000,-4407.46,0.00027945,2]
[425923632,1782036660000,-500.0,0.00027945,2]
[425923633,1782036660000,-614.43,0.00027945,2]
[425923643,1782036660000,-500.0,0.00027945,2]
[425923637,1782036660000,-500.0,0.00027945,2]
[425923634,1782036660000,-752.17,0.00027945,2]
[425923636,1782036660000,-500.0,0.00027945,2]
[425923638,1782036660000,-6191.78,0.00027945,2]
[425923635,1782036660000,-4920.34,0.00027945,2]
[425923639,1782036660000,-565.93692672,0.00027945,2]
[425923642,1782036660000,-3641.08,0.00027945,2]
[425923640,1782036660000,-504.3,0.00027945,2]
[425923641,1782036660000,-8802.4,0.00027945,2]
[425923647,1782036660000,-8686.83,0.00027945,2]
[425923645,1782036660000,-500.0,0.00027945,2]
[425923590,1782036660000,-500.0,0.00027945,2]
[425923615,1782036660000,-737.59,0.00027945,2]
[425923614,1782036660000,-500.0,0.00027945,2]
[425923646,1782036660000,-500.0,0.00027945,2]
[425923644,1782036660000,-1000.0,0.00027945,2]
[425923612,1782036660000,-500.0,0.00027945,2]
[425923582,1782036660000,-500.0,0.00027945,2]
[425923584,1782036660000,-500.0,0.00027945,2]
[425923586,1782036660000,-4513.58,0.00027945,2]
[425923587,1782036660000,-741.55,0.00027945,2]
[425923605,1782036660000,-11591.31,0.00027945,2]
[425923597,1782036660000,-500.0,0.00027945,2]
[425923598,1782036660000,-500.0,0.00027945,2]
[425923601,1782036660000,-4142.16,0.00027945,2]
[425923602,1782036660000,-509.3287975,0.00027945,2]
[425923596,1782036660000,-4234.92,0.00027945,2]
[425923600,1782036660000,-5549.57,0.00027945,2]
[425923599,1782036660000,-500.0,0.00027945,2]
[425923603,1782036660000,-500.0,0.00027945,2]
[425923585,1782036660000,-500.0,0.00027945,2]
[425923618,1782036660000,-577.38606193,0.00027945,2]
[425923606,1782036660000,-529.95,0.00027945,2]
[425923594,1782036660000,-591.76084103,0.00027945,2]
[425923593,1782036660000,-518.81,0.00027945,2]
[425923595,1782036660000,-544.03,0.00027945,2]
[425923608,1782036660000,-500.0,0.00027945,2]
[425923617,1782036660000,-560.95,0.00027945,2]
[425923616,1782036660000,-700.0,0.00027945,2]
[425923611,1782036660000,-500.0,0.00027945,2]
[425923604,1782036660000,-151.0,0.00027945,7]
[425923607,1782036660000,-151.0,0.00027945,7]
[425923610,1782036660000,-151.0,0.00027945,7]
[425923609,1782036660000,-500.0,0.00027945,2]
[425923686,1782036661000,-500.0,0.00027945,2]
[425923689,1782036661000,-2750.97,0.00027945,2]
[425923677,1782036661000,-557.99810627,0.00027945,2]
[425923691,1782036661000,-7308.09,0.00027945,2]
[425923688,1782036661000,-500.0,0.00027945,2]
[425923684,1782036661000,-500.0,0.00027945,2]
[425923671,1782036661000,-513.04,0.00027945,2]
[425923693,1782036661000,-500.0,0.00027945,2]
[425923682,1782036661000,-58770.661065,0.00027945,2]
[425923683,1782036661000,-913.0,0.00027945,2]
[425923680,1782036661000,-673.1,0.00027945,2]
[425923687,1782036661000,-2177.43,0.00027945,2]
[425923685,1782036661000,-500.0,0.00027945,2]
[425923692,1782036661000,-500.0,0.00027945,2]
[425923696,1782036661000,-500.0,0.00027945,2]
[425923697,1782036661000,-500.0,0.00027945,2]
[425923694,1782036661000,-6610.19,0.00027945,2]
[425923706,1782036661000,-500.0,0.00027945,2]
[425923703,1782036661000,-578.58,0.00027945,2]
[425923701,1782036661000,-500.0,0.00027945,2]
[425923700,1782036661000,-471.4760649,0.00027945,2]
[425923698,1782036661000,-3409.76,0.00027945,2]
[425923699,1782036661000,-500.0,0.00027945,2]
[425923705,1782036661000,-5168.02,0.00027945,2]
[425923695,1782036661000,-10370.49,0.00027945,2]
[425923702,1782036661000,-363.90048019,0.00027945,2]
[425923704,1782036661000,-2245.52,0.00027945,2]
[425923690,1782036661000,-500.0,0.00027945,2]
[425923678,1782036661000,-444.45474692,0.00027945,2]
[425923655,1782036661000,-9148.39,0.00027945,2]
[425923681,1782036661000,-4469.05,0.00027945,2]
[425923707,1782036661000,-500.0,0.00027945,2]
[425923649,1782036661000,-500.0,0.00027945,2]
[425923652,1782036661000,-3642.96,0.00027945,2]
[425923651,1782036661000,-15685.64,0.00027945,2]
[425923648,1782036661000,-500.0,0.00027945,2]
[425923650,1782036661000,-500.0,0.00027945,2]
[425923654,1782036661000,-9537.38,0.00027945,2]
[425923653,1782036661000,-500.0,0.00027945,2]
[425923657,1782036661000,-536.52710487,0.00027945,2]
[425923667,1782036661000,-574.59,0.00027945,2]
[425923656,1782036661000,-762.22,0.00027945,2]
[425923658,1782036661000,-1130.75,0.00027945,2]
[425923659,1782036661000,-4116.89,0.00027945,2]
[425923670,1782036661000,-517.66992654,0.00027945,2]
[425923668,1782036661000,-500.0,0.00027945,2]
[425923661,1782036661000,-500.0,0.00027945,2]
[425923663,1782036661000,-500.0,0.00027945,2]
[425923662,1782036661000,-3648.64,0.00027945,2]
[425923664,1782036661000,-7006.76,0.00027945,2]
[425923665,1782036661000,-904.85,0.00027945,2]
[425923666,1782036661000,-3690.26,0.00027945,2]
[425923675,1782036661000,-500.0,0.00027945,2]
[425923669,1782036661000,-694.24,0.00027945,2]
[425923676,1782036661000,-6967.46,0.00027945,2]
[425923673,1782036661000,-2754.08,0.00027945,2]
[425923674,1782036661000,-500.0,0.00027945,2]
[425923679,1782036661000,-500.0,0.00027945,2]
[425923672,1782036661000,-500.0,0.00027945,2]
[425923660,1782036661000,-793.21,0.00027945,2]
[425923719,1782036661000,-1161.648627,0.000282,7]
[425923717,1782036661000,-2000.0,0.00028176,7]
[425923767,1782036661000,-500.0,0.00028219,2]
[425923743,1782036661000,-662.54,0.00028219,2]
[425923742,1782036661000,-500.0,0.00028219,2]
[425923745,1782036661000,-500.0,0.00028219,2]
[425923748,1782036661000,-500.0,0.00028219,2]
[425923749,1782036661000,-500.0,0.00028219,2]
[425923757,1782036661000,-500.0,0.00028219,2]
[425923751,1782036661000,-1087.51,0.00028219,2]
[425923756,1782036661000,-500.0,0.00028219,2]
[425923746,1782036661000,-500.0,0.00028219,2]
[425923747,1782036661000,-500.0,0.00028219,2]
[425923755,1782036661000,-543.45,0.00028219,2]
[425923753,1782036661000,-500.0,0.00028219,2]
[425923752,1782036661000,-500.0,0.00028219,2]
[425923741,1782036661000,-500.0,0.00028219,2]
[425923750,1782036661000,-156.37377183,0.00028219,2]
[425923758,1782036661000,-500.0,0.00028219,2]
[425923769,1782036661000,-1089.19,0.00028219,2]
[425923761,1782036661000,-500.0,0.00028219,2]
[425923762,1782036661000,-500.0,0.00028219,2]
[425923760,1782036661000,-500.0,0.00028219,2]
[425923763,1782036661000,-500.0,0.00028219,2]
[425923765,1782036661000,-500.0,0.00028219,2]
[425923768,1782036661000,-500.0,0.00028219,2]
[425923764,1782036661000,-500.0,0.00028219,2]
[425923766,1782036661000,-500.0,0.00028219,2]
[425923716,1782036661000,-1873.3572,0.00028008,14]
[425923771,1782036661000,-500.0,0.00028219,2]
[425923770,1782036661000,-500.0,0.00028219,2]
[425923759,1782036661000,-550.18,0.00028219,2]
[425923739,1782036661000,-500.0,0.00028219,2]
[425923754,1782036661000,-500.0,0.00028219,2]
[425923738,1782036661000,-500.0,0.00028219,2]
[425923708,1782036661000,-1012.47,0.00027945,2]
[425923740,1782036661000,-500.0,0.00028219,2]
[425923718,1782036661000,-449.5,0.000282,7]
[425923709,1782036661000,-500.0,0.00027945,2]
[425923712,1782036661000,-1820.63,0.00027945,2]
[425923710,1782036661000,-500.0,0.00027945,2]
[425923714,1782036661000,-950.76,0.00028,7]
[425923713,1782036661000,-3922.44897561,0.00027946,2]
[425923711,1782036661000,-500.0,0.00027945,2]
[425923720,1782036661000,-1161.648627,0.000282,7]
[425923723,1782036661000,-14985.80017302,0.000282,2]
[425923728,1782036661000,-1428.58,0.00028218,2]
[425923726,1782036661000,-200.0,0.00028216,2]
[425923724,1782036661000,-14985.80017299,0.000282,2]
[425923715,1782036661000,-1200.29,0.00028,7]
[425923721,1782036661000,-1161.648627,0.000282,7]
[425923725,1782036661000,-14985.80017299,0.000282,2]
[425923736,1782036661000,-500.0,0.00028219,2]
[425923737,1782036661000,-500.0,0.00028219,2]
[425923744,1782036661000,-500.0,0.00028219,2]
[425923733,1782036661000,-500.0,0.00028219,2]
[425923734,1782036661000,-500.0,0.00028219,2]
[425923735,1782036661000,-500.0,0.00028219,2]
[425923732,1782036661000,-500.0,0.00028219,2]
[425923731,1782036661000,-735.98,0.00028218,2]
[425923727,1782036661000,-1428.58,0.00028218,2]
[425923729,1782036661000,-1428.58,0.00028218,2]
[425923722,1782036661000,-1161.648627,0.000282,7]
[425923730,1782036661000,-735.98,0.00028218,2]
[425923810,1782036662000,-1101.32,0.00028219,2]
[425923808,1782036662000,-500.0,0.00028219,2]
[425923812,1782036662000,-500.0,0.00028219,2]
[425923805,1782036662000,-500.0,0.00028219,2]
[425923813,1782036662000,-500.0,0.00028219,2]
[425923803,1782036662000,-500.0,0.00028219,2]
[425923811,1782036662000,-500.0,0.00028219,2]
[425923804,1782036662000,-500.0,0.00028219,2]
[425923799,1782036662000,-500.0,0.00028219,2]
[425923807,1782036662000,-500.0,0.00028219,2]
[425923806,1782036662000,-500.0,0.00028219,2]
[425923809,1782036662000,-671.07,0.00028219,2]
[425923818,1782036662000,-500.0,0.00028219,2]
[425923825,1782036662000,-500.0,0.00028219,2]
[425923815,1782036662000,-500.0,0.00028219,2]
[425923816,1782036662000,-500.0,0.00028219,2]
[425923823,1782036662000,-626.28103759,0.00028219,2]
[425923824,1782036662000,-500.0,0.00028219,2]
[425923817,1782036662000,-835.47,0.00028219,2]
[425923819,1782036662000,-500.0,0.00028219,2]
[425923826,1782036662000,-500.0,0.00028219,2]
[425923821,1782036662000,-500.0,0.00028219,2]
[425923820,1782036662000,-555.47,0.00028219,2]
[425923822,1782036662000,-500.0,0.00028219,2]
[425923802,1782036662000,-500.0,0.00028219,2]
[425923814,1782036662000,-152.82369895,0.00028219,2]
[425923801,1782036662000,-500.0,0.00028219,2]
[425923828,1782036662000,-500.0,0.00028219,2]
[425923796,1782036662000,-500.0,0.00028219,2]
[425923772,1782036662000,-500.0,0.00028219,2]
[425923777,1782036662000,-500.0,0.00028219,2]
[425923776,1782036662000,-837.02,0.00028219,2]
[425923774,1782036662000,-500.0,0.00028219,2]
[425923780,1782036662000,-500.0,0.00028219,2]
[425923773,1782036662000,-500.0,0.00028219,2]
[425923778,1782036662000,-500.0,0.00028219,2]
[425923775,1782036662000,-500.0,0.00028219,2]
[425923779,1782036662000,-500.0,0.00028219,2]
[425923782,1782036662000,-500.0,0.00028219,2]
[425923781,1782036662000,-500.0,0.00028219,2]
[425923783,1782036662000,-877.63,0.00028219,2]
[425923794,1782036662000,-500.0,0.00028219,2]
[425923785,1782036662000,-500.0,0.00028219,2]
[425923786,1782036662000,-500.0,0.00028219,2]
[425923789,1782036662000,-500.0,0.00028219,2]
[425923787,1782036662000,-500.0,0.00028219,2]
[425923788,1782036662000,-500.0,0.00028219,2]
[425923790,1782036662000,-500.0,0.00028219,2]
[425923791,1782036662000,-500.0,0.00028219,2]
[425923800,1782036662000,-688.76,0.00028219,2]
[425923793,1782036662000,-500.0,0.00028219,2]
[425923797,1782036662000,-500.0,0.00028219,2]
[425923792,1782036662000,-500.0,0.00028219,2]
[425923798,1782036662000,-552.91,0.00028219,2]
[425923795,1782036662000,-500.0,0.00028219,2]
[425923784,1782036662000,-500.0,0.00028219,2]
[425923827,1782036662000,-500.0,0.00028219,2]
[425923831,1782036662000,-500.0,0.00028219,2]
[425923832,1782036662000,-500.0,0.00028219,2]
[425923857,1782036662000,-500.0,0.00028219,2]
[425923863,1782036662000,-500.0,0.00028219,2]
[425923865,1782036662000,-500.0,0.00028219,2]
[425923867,1782036662000,-500.0,0.00028219,2]
[425923864,1782036662000,-500.0,0.00028219,2]
[425923871,1782036662000,-500.0,0.00028219,2]
[425923866,1782036662000,-500.0,0.00028219,2]
[425923868,1782036662000,-500.0,0.00028219,2]
[425923872,1782036662000,-687.18,0.00028219,2]
[425923875,1782036662000,-500.0,0.00028219,2]
[425923869,1782036662000,-500.0,0.00028219,2]
[425923874,1782036662000,-641.52,0.00028219,2]
[425923859,1782036662000,-500.0,0.00028219,2]
[425923873,1782036662000,-694.81,0.00028219,2]
[425923879,1782036662000,-693.69,0.00028219,2]
[425923877,1782036662000,-500.0,0.00028219,2]
[425923878,1782036662000,-500.0,0.00028219,2]
[425923883,1782036662000,-516.71,0.00028219,2]
[425923881,1782036662000,-500.0,0.00028219,2]
[425923880,1782036662000,-500.0,0.00028219,2]
[425923876,1782036662000,-500.0,0.00028219,2]
[425923885,1782036662000,-500.0,0.00028219,2]
[425923886,1782036662000,-1198.9,0.00028219,2]
[425923882,1782036662000,-599.45,0.00028219,2]
[425923884,1782036662000,-553.65,0.00028219,2]
[425923888,1782036662000,-500.0,0.00028219,2]
[425923887,1782036662000,-500.0,0.00028219,2]
[425923858,1782036662000,-500.0,0.00028219,2]
[425923870,1782036662000,-500.0,0.00028219,2]
[425923860,1782036662000,-512.62,0.00028219,2]
[425923853,1782036662000,-500.0,0.00028219,2]
[425923837,1782036662000,-605.32,0.00028219,2]
[425923835,1782036662000,-673.93,0.00028219,2]
[425923836,1782036662000,-500.0,0.00028219,2]
[425923829,1782036662000,-500.0,0.00028219,2]
[425923830,1782036662000,-500.0,0.00028219,2]
[425923833,1782036662000,-500.0,0.00028219,2]
[425923834,1782036662000,-500.0,0.00028219,2]
[425923840,1782036662000,-500.0,0.00028219,2]
[425923841,1782036662000,-500.0,0.00028219,2]
[425923842,1782036662000,-500.0,0.00028219,2]
[425923848,1782036662000,-925.07,0.00028219,2]
[425923846,1782036662000,-500.0,0.00028219,2]
[425923844,1782036662000,-500.0,0.00028219,2]
[425923838,1782036662000,-500.0,0.00028219,2]
[425923839,1782036662000,-500.0,0.00028219,2]
[425923852,1782036662000,-500.0,0.00028219,2]
[425923850,1782036662000,-500.0,0.00028219,2]
[425923856,1782036662000,-3192.54,0.00028219,2]
[425923854,1782036662000,-682.66,0.00028219,2]
[425923862,1782036662000,-152.14656906,0.00028219,2]
[425923861,1782036662000,-500.0,0.00028219,2]
[425923855,1782036662000,-500.0,0.00028219,2]
[425923845,1782036662000,-500.0,0.00028219,2]
[425923849,1782036662000,-500.0,0.00028219,2]
[425923843,1782036662000,-500.0,0.00028219,2]
[425923847,1782036662000,-500.0,0.00028219,2]
[425923851,1782036662000,-500.0,0.00028219,2]
[425923927,1782036663000,-519.87,0.00028219,2]
[425923929,1782036663000,-330.49927303,0.00028219,2]
[425923934,1782036663000,-500.0,0.00028219,2]
[425923937,1782036663000,-500.0,0.00028219,2]
[425923936,1782036663000,-500.0,0.00028219,2]